bitfinex/quotes_SOLUSD_20241210
["timestamp","ask_amount","ask_price","bid_price","bid_amount"]
[1733863335707,20.0,213.53,213.47,13.523]
[1733863338919,20.0,213.49,213.43,13.73782562]
[1733863339118,20.0,213.49,213.42,7.6616]
[1733863339498,20.0,213.49,213.42,6.0659]
[1733863339707,21.85385939,213.49,213.42,6.0659]
[1733863339926,21.85385939,213.49,213.41,0.21482562]
[1733863340309,20.0,213.45,213.37,7.7445]
[1733863340510,20.0,213.45,213.37,6.1474]
[1733863340711,20.0,213.41,213.33,13.523]
[1733863340917,20.0,213.41,213.32,6.1474]
[1733863340918,23.776884,213.4,213.32,6.1474]
[1733863341100,20.0,213.37,213.29,13.73782562]
[1733863341300,20.0,213.37,213.29,0.21482562]
[1733863341521,20.0,213.33,213.27,7.7445]
[1733863341705,20.0,213.33,213.25,13.523]
[1733863342223,20.0,213.33,213.27,13.523]
[1733863342430,23.776884,213.38,213.27,13.73782562]
[1733863342640,20.0,213.35,213.29,0.21482562]
[1733863343133,20.0,213.36,213.29,13.73782562]
[1733863343437,20.0,213.36,213.32,0.21482562]
[1733863344314,20.0,213.36,213.29,13.523]
[1733863344520,20.0,213.36,213.27,13.73782562]
[1733863344709,20.0,213.36,213.27,0.21482562]
[1733863345039,20.0,213.32,213.27,0.21482562]
[1733863347848,20.0,213.32,213.25,13.523]
[1733863347849,20.0,213.32,213.25,13.73782562]
[1733863349642,20.0,213.32,213.23,13.73782562]
[1733863349857,20.0,213.32,213.23,0.21482562]
[1733863350013,20.0,213.28,213.22,1.5971]
[1733863351240,20.0,213.28,213.23,0.21482562]
[1733863351748,20.0,213.28,213.22,1.5971]
[1733863352645,20.0,213.24,213.17,13.523]
[1733863352935,20.0,213.24,213.16,6.28762562]
[1733863353533,20.0,213.24,213.16,19.81062562]
[1733863353744,20.0,213.24,213.18,0.21482562]
[1733863353942,20.0,213.31,213.2,13.73782562]
[1733863354244,20.0,213.27,213.2,13.73782562]
[1733863354541,20.0,213.27,213.22,13.73782562]
[1733863354926,22.82847761,213.33,213.22,13.73782562]
[1733863355133,22.82847761,213.33,213.24,13.73782562]
[1733863355134,2.82847761,213.33,213.24,13.73782562]
[1733863355437,2.82847761,213.33,213.26,0.21482562]
[1733863355848,2.82847761,213.33,213.24,13.73782562]
[1733863356517,20.0,213.29,213.24,13.73782562]
[1733863356939,20.0,213.29,213.26,0.21482562]
[1733863358143,2.82847761,213.33,213.26,13.73782562]
[1733863358540,2.82847761,213.33,213.26,13.523]
[1733863361851,2.82847761,213.33,213.28,13.523]
[1733863362952,4.35359948,213.39,213.31,13.523]
[1733863363152,1.87438165,213.39,213.31,13.523]
[1733863363322,3.7639,213.44,213.33,13.73782562]
[1733863363521,6.35313623,213.45,213.33,13.73782562]
[1733863363740,0.25098,213.44,213.33,13.73782562]
[1733863364353,2.81688364,213.36,213.33,13.73782562]
[1733863366353,2.81688364,213.36,213.33,13.523]
[1733863369049,2.81688364,213.36,213.31,0.21482562]
[1733863369647,2.81688364,213.36,213.3,0.21482562]
[1733863369843,20.0,213.37,213.3,0.21482562]
[1733863370153,20.0,213.33,213.28,0.21482562]
[1733863370359,20.0,213.33,213.29,13.523]
[1733863370657,20.0,213.33,213.3,0.21482562]
[1733863370858,0.42553192,213.32,213.3,0.21482562]
[1733863374652,0.42553192,213.32,213.29,13.523]
[1733863375146,0.42553192,213.32,213.3,0.21482562]
[1733863375564,0.42553192,213.32,213.29,13.523]
[1733863375869,0.42553192,213.32,213.3,0.21482562]
[1733863376067,0.42553192,213.32,213.29,13.523]
[1733863376264,0.42553192,213.32,213.3,0.21482562]
[1733863376563,0.42553192,213.32,213.29,13.523]
[1733863376732,0.42553192,213.32,213.28,0.21482562]
[1733863378042,0.42553192,213.32,213.3,0.21482562]
[1733863378761,0.42553192,213.32,213.31,13.523]
[1733863378950,0.42553192,213.32,213.31,13.64849]
[1733863379156,3.7639,213.5,213.4,0.21482562]
[1733863379157,11.08068921,213.5,213.4,0.21482562]
[1733863379645,0.12549,213.49,213.4,0.21482562]
[1733863379853,3.7639,213.5,213.4,0.21482562]
[1733863380060,0.12549,213.49,213.4,0.21482562]
[1733863380248,2.81907128,213.42,213.4,0.21482562]
[1733863381561,2.81907128,213.42,213.35,0.21482562]
[1733863381946,2.81907128,213.42,213.34,13.523]
[1733863382554,2.81907128,213.42,213.35,0.21482562]
[1733863383168,2.81907128,213.42,213.34,13.523]
[1733863386869,20.0,213.38,213.33,0.21482562]
[1733863387061,20.0,213.38,213.31,6.45662562]
[1733863387259,20.0,213.38,213.31,0.21482562]
[1733863387462,23.776884,213.41,213.29,0.21482562]
[1733863387463,20.0,213.34,213.29,0.21482562]
[1733863387958,20.0,213.34,213.26,19.7648]
[1733863387959,20.0,213.34,213.27,0.21482562]
[1733863388470,20.0,213.3,213.25,0.21482562]
[1733863388647,20.0,213.3,213.27,0.21482562]
[1733863389353,20.0,213.34,213.27,13.73782562]
[1733863389549,20.0,213.35,213.27,13.73782562]
[1733863389741,20.0,213.36,213.27,13.73782562]
[1733863389945,1.97638799,213.37,213.27,13.73782562]
[1733863389946,20.0,213.32,213.27,0.21482562]
[1733863390142,20.0,213.32,213.24,0.21482562]
[1733863391054,20.0,213.32,213.26,13.73782562]
[1733863391258,2.85659002,213.3,213.26,0.21482562]
[1733863392772,2.85659002,213.3,213.26,13.73782562]
[1733863393668,2.85659002,213.3,213.24,13.73782562]
[1733863393843,2.85659002,213.3,213.26,13.73782562]
[1733863394047,20.0,213.32,213.28,13.523]
[1733863394248,1.97638799,213.37,213.28,13.523]
[1733863394249,9.1676872,213.37,213.3,13.523]
[1733863394590,7.31678921,213.39,213.33,13.523]
[1733863394756,7.31678921,213.41,213.34,0.21482562]
[1733863395088,7.31678921,213.42,213.36,0.21482562]
[1733863395248,7.31678921,213.42,213.31,20.54594531]
[1733863395249,7.31678921,213.44,213.39,13.73782562]
[1733863395449,7.31678921,213.45,213.39,0.21482562]
[1733863395787,2.87482294,213.43,213.39,13.523]
[1733863395985,2.87482294,213.43,213.39,13.73782562]
[1733863396187,2.87482294,213.43,213.41,13.523]
[1733863396656,2.87482294,213.43,213.39,0.21482562]
[1733863396854,2.87482294,213.43,213.39,13.73782562]
[1733863397262,2.87482294,213.43,213.41,13.523]
[1733863397573,2.87482294,213.43,213.39,0.21482562]
[1733863397786,2.87482294,213.43,213.41,13.523]
[1733863398471,7.31678921,213.49,213.41,13.73782562]
[1733863398895,2.76620101,213.45,213.41,13.73782562]
[1733863399799,2.76620101,213.45,213.41,0.21482562]
[1733863400085,2.76620101,213.45,213.41,13.73782562]
[1733863400261,2.76620101,213.45,213.39,13.73782562]
[1733863400571,2.76620101,213.45,213.31,20.54594531]
[1733863400572,20.0,213.41,213.35,13.73782562]
[1733863400762,20.0,213.41,213.35,0.21482562]
[1733863401583,20.0,213.4,213.33,0.21482562]
[1733863402382,20.0,213.41,213.34,13.523]
[1733863402554,20.0,213.41,213.33,0.21482562]
[1733863402760,20.0,213.41,213.34,13.523]
[1733863403376,23.776884,213.4,213.33,0.21482562]
[1733863403683,20.0,213.37,213.33,0.21482562]
[1733863406468,7.31678921,213.41,213.34,13.523]
[1733863406675,20.0,213.39,213.35,0.21482562]
[1733863407375,20.0,213.39,213.36,13.523]
[1733863407596,20.0,213.4,213.37,0.21482562]
[1733863408187,20.0,213.41,213.37,0.21482562]
[1733863408369,20.0,213.42,213.38,13.523]
[1733863409671,20.0,213.41,213.38,13.523]
[1733863410285,12.0046704,213.45,213.4,0.21482562]
[1733863410485,4.68788119,213.45,213.42,0.21482562]
[1733863410680,2.76620101,213.45,213.42,13.73782562]
[1733863410882,9.23073741,213.49,213.44,13.523]
[1733863411090,9.23073741,213.49,213.45,0.21482562]
[1733863411091,1.9139482,213.49,213.45,0.21482562]
[1733863411293,7.31678921,213.5,213.45,0.21482562]
[1733863411597,7.31678921,213.51,213.45,0.21482562]
[1733863411974,2.76511921,213.47,213.45,0.21482562]
[1733863414807,20.0,213.5,213.45,0.21482562]
[1733863415776,23.776884,213.49,213.43,0.21482562]
[1733863415979,20.0,213.46,213.4,6.2795]
[1733863416881,43.776884,213.45,213.37,13.73782562]
[1733863417086,43.776884,213.45,213.35,6.49432562]
[1733863417286,20.0,213.43,213.35,6.49432562]
[1733863417491,0.12549,213.44,213.35,6.49432562]
[1733863417492,20.0,213.42,213.35,6.49432562]
[1733863417671,20.0,213.41,213.35,6.49432562]
[1733863418697,20.0,213.37,213.3,6.49432562]
[1733863419000,20.0,213.37,213.32,0.21482562]
[1733863419838,20.0,213.37,213.33,13.523]
[1733863420175,20.0,213.37,213.36,0.21482562]
[1733863420992,20.0,213.39,213.33,13.523]
[1733863421202,20.0,213.39,213.32,0.21482562]
[1733863422587,20.0,213.39,213.34,13.523]
[1733863423185,20.0,213.39,213.34,13.73782562]
[1733863423582,20.0,213.39,213.34,0.21482562]
[1733863424383,20.0,213.39,213.32,13.73782562]
[1733863424587,20.0,213.38,213.32,13.73782562]
[1733863425328,20.0,213.38,213.32,0.21482562]
[1733863426116,20.0,213.34,213.3,0.21482562]
[1733863426329,23.776884,213.33,213.28,13.73782562]
[1733863426487,20.0,213.3,213.26,0.21482562]
[1733863426688,20.0,213.3,213.25,6.2795]
[1733863427362,20.0,213.3,213.24,13.73782562]
[1733863427823,20.0,213.3,213.26,13.73782562]
[1733863427985,21.8973003,213.33,213.28,13.73782562]
[1733863428185,20.0,213.36,213.3,13.73782562]
[1733863428416,1.88975336,213.37,213.3,13.73782562]
[1733863428586,7.31678921,213.4,213.3,13.73782562]
[1733863428985,0.12549,213.4,213.3,13.73782562]
[1733863429402,24.027864,213.4,213.32,0.21482562]
[1733863430600,20.0,213.37,213.32,0.21482562]
[1733863431017,0.42553191,213.36,213.32,0.21482562]
[1733863432320,0.42553191,213.36,213.32,13.73782562]
[1733863433192,0.42553191,213.36,213.32,13.523]
[1733863433397,0.42553191,213.36,213.3,19.8025]
[1733863433797,20.42553191,213.36,213.3,19.8025]
[1733863434213,20.42553191,213.36,213.3,6.2795]
[1733863435297,20.42553191,213.36,213.31,13.523]
[1733863438126,0.42553191,213.36,213.31,13.523]
[1733863438724,0.42553191,213.36,213.35,13.523]
[1733863438931,0.42553191,213.36,213.33,13.73782562]
[1733863440026,0.42553191,213.36,213.35,13.523]
[1733863440318,0.42553191,213.36,213.35,13.73782562]
[1733863440518,0.42553191,213.36,213.35,0.21482562]
[1733863440925,0.42553191,213.36,213.33,13.73782562]
[1733863441134,0.42553191,213.36,213.35,0.21482562]
[1733863441312,0.42553191,213.36,213.35,13.73782562]
[1733863441624,0.42553191,213.36,213.33,0.21482562]
[1733863441827,0.42553191,213.36,213.3,6.2795]
[1733863442029,20.42553191,213.36,213.3,6.2795]
[1733863442202,20.0,213.35,213.27,13.73782562]
[1733863442407,20.0,213.33,213.25,0.21482562]
[1733863442716,20.0,213.32,213.27,0.21482562]
[1733863442917,20.42553191,213.32,213.28,13.523]
[1733863443632,0.42553191,213.32,213.28,13.523]
[1733863444852,0.42553191,213.32,213.24,8.28682562]
[1733863445005,20.42553191,213.32,213.25,13.523]
[1733863445609,20.0,213.31,213.25,13.523]
[1733863446256,0.42553191,213.3,213.25,13.523]
[1733863446935,0.42553191,213.3,213.24,6.66452562]
[1733863447836,0.42553191,213.3,213.21,13.73782562]
[1733863447837,0.12549,213.29,213.21,13.73782562]
[1733863448041,0.12549,213.29,213.19,6.4497]
[1733863448343,0.12549,213.27,213.15,1.6223]
[1733863448537,20.12549,213.27,213.15,1.6223]
[1733863448738,0.42553191,213.26,213.15,1.6223]
[1733863449448,0.25098,213.25,213.15,1.6223]
[1733863449883,0.42553191,213.24,213.15,1.6223]
[1733863451674,0.42553191,213.24,213.16,24.027864]
[1733863452041,0.42553191,213.24,213.17,0.12549]
[1733863452361,0.42553191,213.24,213.18,0.25098]
[1733863453050,0.42553191,213.24,213.17,0.12549]
[1733863453254,0.42553191,213.24,213.17,0.37647]
[1733863454041,0.42553191,213.24,213.16,23.776884]
[1733863454757,0.42553191,213.24,213.15,1.6223]
[1733863454758,0.42553191,213.24,213.14,6.4497]
[1733863454957,0.12549,213.23,213.13,0.5841141]
[1733863455262,0.42553191,213.22,213.13,0.5841141]
[1733863459861,2.84227088,213.21,213.13,0.5841141]
[1733863460257,0.42553191,213.2,213.13,0.5841141]
[1733863462875,0.42553191,213.2,213.14,24.153354]
[1733863463250,0.42553191,213.2,213.16,0.25098]
[1733863463476,0.42553191,213.2,213.17,0.12549]
[1733863463875,0.42553191,213.2,213.19,0.12549]
[1733863464167,0.42553191,213.2,213.19,25.533364]
[1733863466761,0.42553191,213.2,213.19,26.36221547]
[1733863466960,0.42553191,213.2,213.19,41.36221547]
[1733863467370,0.42553191,213.2,213.19,55.89556078]
[1733863467882,0.42553191,213.2,213.19,26.36221547]
[1733863472780,0.42553191,213.2,213.19,26.23672547]
[1733863472983,0.42553191,213.2,213.19,25.533364]
[1733863474866,0.42553191,213.2,213.19,26.36222903]
[1733863476378,0.42553191,213.2,213.19,25.658854]
[1733863477565,0.42553191,213.2,213.19,0.12549]
[1733863477750,0.42553191,213.2,213.16,23.776884]
[1733863477955,0.42553191,213.2,213.17,0.25098]
[1733863478878,0.42553191,213.2,213.15,6.4164]
[1733863480271,0.42553191,213.2,213.16,0.12549]
[1733863482057,0.42553191,213.2,213.15,6.4164]
[1733863482254,0.42553191,213.2,213.13,0.5841141]
[1733863485865,2.08763191,213.2,213.13,0.5841141]
[1733863486480,0.12549,213.19,213.13,0.5841141]
[1733863486884,0.42553191,213.18,213.13,0.5841141]
[1733863488263,20.0,213.17,213.13,0.5841141]
[1733863488567,0.42553191,213.16,213.13,0.5841141]
[1733863499091,0.42553191,213.16,213.04,6.5521]
[1733863499290,20.0,213.15,213.04,6.5521]
[1733863499801,0.85106383,213.14,213.04,6.5521]
[1733863500175,0.85106383,213.14,213.0,0.70397218]
[1733863500176,0.12549,213.13,213.0,0.70397218]
[1733863500378,0.12549,213.13,212.99,8.1576]
[1733863500582,0.85106383,213.12,212.99,8.1576]
[1733863501574,0.85106383,213.12,213.0,0.95499322]
[1733863501872,0.85106383,213.12,213.01,23.776884]
[1733863502085,0.85106383,213.12,213.04,0.25098]
[1733863502284,0.85106383,213.12,213.06,0.25098]
[1733863504574,0.85106383,213.12,213.0,0.70380531]
[1733863505084,0.85106383,213.12,213.01,0.25098]
[1733863505897,0.85106383,213.12,213.01,24.027864]
[1733863506097,0.85106383,213.12,213.02,0.12549]
[1733863506599,0.85106383,213.12,212.99,8.1576]
[1733863506982,1.6083,213.11,212.99,8.1576]
[1733863507308,4.61496383,213.1,212.94,0.70410948]
[1733863507594,20.0,213.08,212.95,0.25098]
[1733863508106,0.85106383,213.07,212.95,0.12549]
[1733863508473,0.85106383,213.07,212.95,0.37647]
[1733863508882,0.85106383,213.07,212.94,0.70410948]
[1733863509081,0.12549,213.06,212.93,6.5183]
[1733863509417,1.6083,213.02,212.92,0.5841141]
[1733863509779,0.85106383,213.01,212.92,0.5841141]
[1733863511301,20.0,212.97,212.92,0.5841141]
[1733863511504,0.12549,212.96,212.92,0.5841141]
[1733863511816,0.97655383,212.96,212.92,0.5841141]
[1733863512100,0.85106383,212.96,212.92,0.5841141]
[1733863513591,0.85106383,212.96,212.93,24.027864]
[1733863514181,0.85106383,212.96,212.94,0.25098]
[1733863514381,0.85106383,212.96,212.95,0.12549]
[1733863514581,0.85106383,212.96,212.95,24.8574907]
[1733863515422,0.85106383,212.96,212.95,0.37647]
[1733863515780,0.85106383,212.96,212.94,0.12549]
[1733863516107,0.85106383,212.96,212.93,0.12549]
[1733863516302,0.85106383,212.96,212.92,7.1024141]
[1733863516685,0.85106383,212.96,212.92,0.5841141]
[1733863523692,0.85106383,212.96,212.92,0.0841141]
[1733863525528,0.85106383,212.96,212.92,0.2096041]
[1733863525686,0.85106383,212.96,212.93,0.12549]
[1733863525882,0.85106383,212.96,212.94,0.25098]
[1733863526087,0.85106383,212.96,212.95,38.57742193]
[1733863526381,0.85106383,212.96,212.95,38.70291193]
[1733863527724,0.85106383,212.96,212.95,0.12549]
[1733863528802,0.85106383,212.96,212.95,0.25098]
[1733863529188,0.85106383,212.96,212.95,0.12549]
[1733863529403,0.85106383,212.96,212.94,23.776884]
[1733863529825,0.85106383,212.96,212.94,0.12549]
[1733863529985,0.85106383,212.96,212.95,24.153354]
[1733863533400,0.85106383,212.96,212.95,24.027864]
[1733863533589,0.85106383,212.96,212.95,22.902374]
[1733863533790,0.85106383,212.96,212.95,0.12549]
[1733863534008,0.85106383,212.96,212.92,14.63367203]
[1733863534009,0.85106383,212.96,212.92,0.0841141]
[1733863534888,0.85106383,212.96,212.94,14.54955793]
[1733863535089,0.85106383,212.96,212.95,14.92602793]
[1733863535814,0.85106383,212.96,212.95,38.70291193]
[1733863537403,0.85106383,212.96,212.95,41.47487793]
[1733863537591,0.85106383,212.96,212.95,38.70291193]
[1733863537795,0.85106383,212.96,212.95,23.902374]
[1733863537993,0.85106383,212.96,212.95,0.12549]
[1733863538294,0.85106383,212.96,212.95,0.25098]
[1733863538909,0.85106383,212.96,212.94,0.12549]
[1733863539405,0.85106383,212.96,212.93,23.776884]
[1733863540426,0.85106383,212.96,212.92,0.0841141]
[1733863540722,0.85106383,212.96,212.92,0.2096041]
[1733863541220,0.85106383,212.96,212.92,0.0841141]
[1733863542925,20.12549,212.95,212.79,14.54955793]
[1733863543124,20.0,212.94,212.79,14.54955793]
[1733863543298,20.85106383,212.94,212.79,14.54955793]
[1733863544211,0.25098,212.93,212.76,15.704694]
[1733863544413,20.0,212.89,212.7,1.28888399]
[1733863544630,0.12549,212.88,212.74,14.54955793]
[1733863544924,20.0,212.87,212.74,14.54955793]
[1733863545127,20.0,212.87,212.73,14.54955793]
[1733863545307,0.85106383,212.86,212.73,14.54955793]
[1733863545922,0.85106383,212.86,212.74,0.12549]
[1733863546110,0.85106383,212.86,212.73,14.54955793]
[1733863546314,0.85106383,212.86,212.7,0.5841141]
[1733863546641,0.85106383,212.86,212.7,15.13367203]
[1733863547003,0.85106383,212.86,212.71,0.12549]
[1733863547419,20.0,212.82,212.7,0.5841141]
[1733863547739,0.85106383,212.81,212.7,0.5841141]
[1733863548427,0.85106383,212.81,212.71,8.37858779]
[1733863548632,0.85106383,212.81,212.72,8.37858779]
[1733863548930,20.12549,212.8,212.73,8.37858779]
[1733863549303,0.85106383,212.79,212.74,3.35035806]
[1733863549507,0.85106383,212.79,212.7,0.5841141]
[1733863550103,0.12549,212.78,212.7,0.5841141]
[1733863550313,20.37647,212.78,212.7,0.5841141]
[1733863550613,20.12549,212.76,212.7,0.5841141]
[1733863551006,1.27659574,212.75,212.7,0.5841141]
[1733863552531,21.27659574,212.75,212.7,0.5841141]
[1733863552913,21.27659574,212.75,212.7,1e-08]
[1733863553112,0.25098,212.74,212.64,3.24]
[1733863553352,20.0,212.73,212.64,3.24]
[1733863553650,21.27659574,212.73,212.64,3.24]
[1733863556235,0.12549,212.7,212.64,3.24]
[1733863556441,20.0,212.69,212.64,3.24]
[1733863556653,0.12549,212.68,212.64,3.24]
[1733863556947,0.12549,212.68,212.5,14.549558]
[1733863556948,0.12549,212.66,212.5,0.70560067]
[1733863557126,0.12549,212.64,212.49,0.5841141]
[1733863557320,20.0,212.63,212.49,0.5841141]
[1733863557516,1.40208574,212.62,212.49,0.5841141]
[1733863557738,1.27659574,212.62,212.49,15.13367203]
[1733863557918,1.27659574,212.62,212.5,14.67504793]
[1733863558522,1.27659574,212.62,212.5,14.80053793]
[1733863558828,1.27659574,212.62,212.52,0.12549]
[1733863559024,1.27659574,212.62,212.54,0.12549]
[1733863559454,1.27659574,212.62,212.55,23.902374]
[1733863559831,1.27659574,212.62,212.56,0.12549]
[1733863560516,1.27659574,212.62,212.58,0.12549]
[1733863560718,1.6484,212.73,212.62,0.12549]
[1733863561355,0.12549,212.69,212.53,6.1715]
[1733863561522,0.12549,212.69,212.53,20.72105793]
[1733863561859,1.27659574,212.68,212.58,0.12549]
[1733863562025,1.27659574,212.68,212.54,14.54955793]
[1733863562220,1.27659574,212.68,212.54,0.25098]
[1733863562739,1.27659574,212.68,212.54,0.12549]
[1733863563042,1.27659574,212.68,212.55,0.12549]
[1733863563558,1.27659574,212.68,212.58,0.25098]
[1733863563931,1.27659574,212.68,212.59,0.12549]
[1733863564929,21.27659574,212.68,212.59,0.12549]
[1733863565146,21.27659574,212.68,212.58,0.25098]
[1733863565363,21.27659574,212.68,212.53,20.72105793]
[1733863565742,21.27659574,212.68,212.54,0.25098]
[1733863565944,21.27659574,212.68,212.56,0.25098]
[1733863566344,1.27659574,212.68,212.6,0.12549]
[1733863566758,1.27659574,212.68,212.6,24.027864]
[1733863566951,1.27659574,212.68,212.58,23.776884]
[1733863567277,1.27659574,212.68,212.57,0.12549]
[1733863567482,1.27659574,212.68,212.55,14.54955793]
[1733863567846,21.27659574,212.68,212.56,0.12549]
[1733863568046,20.0,212.65,212.56,0.12549]
[1733863568448,21.27659574,212.64,212.54,0.25098]
[1733863568678,21.27659574,212.64,212.55,0.25098]
[1733863569389,21.27659574,212.64,212.55,0.12549]
[1733863569554,21.27659574,212.64,212.5,14.54955793]
[1733863569555,22.92499574,212.64,212.5,14.54955793]
[1733863570080,22.92499574,212.64,212.51,0.12549]
[1733863570391,22.92499574,212.64,212.49,15.5841141]
[1733863570392,0.12549,212.63,212.49,0.5841141]
[1733863570887,1.27659574,212.62,212.49,0.5841141]
[1733863571191,1.27659574,212.62,212.5,0.12549]
[1733863571393,1.27659574,212.62,212.49,0.5841141]
[1733863571903,1.27659574,212.62,212.5,23.776884]
[1733863572277,1.27659574,212.62,212.53,0.12549]
[1733863572468,1.27659574,212.62,212.54,0.12549]
[1733863572781,1.27659574,212.62,212.54,23.776884]
[1733863572992,1.27659574,212.62,212.55,0.12549]
[1733863573471,1.27659574,212.62,212.54,14.92602793]
[1733863573684,1.27659574,212.62,212.57,0.12549]
[1733863573988,1.27659574,212.62,212.59,0.12549]
[1733863574763,1.27659574,212.62,212.61,0.25098]
[1733863575499,1.27659574,212.62,212.59,0.12549]
[1733863576361,1.27659574,212.62,212.57,23.776884]
[1733863576561,1.27659574,212.62,212.55,24.153354]
[1733863576981,1.27659574,212.62,212.55,38.70291193]
[1733863577382,1.27659574,212.62,212.55,24.153354]
[1733863577563,1.27659574,212.62,212.55,39.40836619]
[1733863578371,1.27659574,212.62,212.55,24.027864]
[1733863578572,1.27659574,212.62,212.55,0.25098]
[1733863578895,1.27659574,212.62,212.51,21.50535315]
[1733863579104,1.27659574,212.62,212.51,20.79985793]
[1733863579274,21.5598,212.61,212.49,0.5841141]
[1733863579802,1.27659574,212.6,212.49,0.5841141]
[1733863580512,1.27659574,212.6,212.5,0.25098]
[1733863580665,1.27659574,212.6,212.5,14.80053793]
[1733863580865,1.27659574,212.6,212.51,0.12549]
[1733863581084,1.27659574,212.6,212.54,0.12549]
[1733863581469,1.27659574,212.6,212.55,0.12549]
[1733863581675,1.27659574,212.6,212.55,0.25098]
[1733863582067,1.27659574,212.6,212.56,0.12549]
[1733863585296,1.27659574,212.6,212.56,14.80053793]
[1733863585625,1.27659574,212.6,212.59,24.153354]
[1733863585787,1.27659574,212.6,212.59,24.027864]
[1733863585984,1.27659574,212.6,212.59,0.25098]
[1733863586918,1.27659574,212.6,212.59,0.37647]
[1733863588018,1.27659574,212.6,212.59,0.25098]
[1733863588218,1.27659574,212.6,212.55,6.106]
[1733863588519,1.27659574,212.6,212.54,14.54955793]
[1733863588712,1.27659574,212.6,212.55,0.25098]
[1733863589207,1.27659574,212.6,212.59,14.80053793]
[1733863589407,1.27659574,212.6,212.59,0.12549]
[1733863590008,1.27659574,212.6,212.59,0.37647]
[1733863592524,1.27659574,212.6,212.59,26.50598505]
[1733863592825,1.27659574,212.6,212.59,39.40824298]
[1733863593431,1.27659574,212.6,212.59,54.40824298]
[1733863594287,1.6271,212.71,212.61,0.12549]
[1733863594487,1.6271,212.71,212.64,0.25098]
[1733863594701,5.391,212.82,212.66,0.25098]
[1733863594902,5.391,212.82,212.68,0.25098]
[1733863595208,5.391,212.82,212.72,0.12549]
[1733863595424,5.391,212.82,212.72,0.25098]
[1733863595932,1.6271,212.82,212.74,0.25098]
[1733863596434,1.6271,212.82,212.74,24.027864]
[1733863597019,21.6271,212.82,212.72,23.776884]
[1733863597225,21.6271,212.82,212.73,14.80053793]
[1733863597520,21.6271,212.82,212.74,23.776884]
[1733863597821,21.6271,212.82,212.74,22.902374]
[1733863598925,21.6271,212.82,212.71,14.54955793]
[1733863599693,21.6271,212.82,212.72,24.027864]
[1733863600819,21.6271,212.82,212.68,14.54955793]
[1733863601000,20.0,212.81,212.66,14.54955793]
[1733863601202,23.7639,212.79,212.63,14.54955793]
[1733863601413,23.7639,212.79,212.66,0.25098]
[1733863601613,23.7639,212.79,212.68,0.12549]
[1733863602298,23.7639,212.79,212.69,0.25098]
[1733863602503,23.7639,212.79,212.69,24.027864]
[1733863604117,23.7639,212.79,212.71,23.776884]
[1733863604319,1.6271,212.82,212.73,0.12549]
[1733863604619,1.6271,212.87,212.76,24.027864]
[1733863604837,1.6271,212.87,212.77,14.54955793]
[1733863605137,1.6271,212.87,212.8,23.776884]
[1733863605296,4.42308445,212.87,212.8,23.776884]
[1733863605697,1.8801175,212.91,212.8,23.776884]
[1733863605899,1.6271,212.92,212.83,0.25098]
[1733863606115,1.6271,212.92,212.85,14.80053793]
[1733863606315,2.81376631,212.94,212.86,23.776884]
[1733863606515,1.6271,212.98,212.88,23.902374]
[1733863606903,2.78778696,212.99,212.92,23.776884]
[1733863608108,2.78778696,212.99,212.9,23.776884]
[1733863608316,2.78778696,212.99,212.88,23.776884]
[1733863608824,2.78778696,212.99,212.9,0.12549]
[1733863609019,2.78778696,212.99,212.9,23.902374]
[1733863610430,2.78778696,212.99,212.91,0.12549]
[1733863610608,5.391,213.04,212.92,23.902374]
[1733863610804,0.42553191,212.98,212.92,23.902374]
[1733863611008,0.42553191,212.98,212.93,0.12549]
[1733863611337,0.42553191,212.98,212.92,23.902374]
[1733863614823,0.42553191,212.98,212.94,0.12549]
[1733863615029,0.42553191,212.98,212.92,23.776884]
[1733863615252,0.42553191,212.98,212.9,23.776884]
[1733863615555,0.42553191,212.98,212.91,0.12549]
[1733863615940,0.42553191,212.98,212.91,0.37647]
[1733863616931,0.42553191,212.98,212.94,23.776884]
[1733863617433,0.42553191,212.98,212.93,0.37647]
[1733863617636,0.42553191,212.98,212.93,0.12549]
[1733863617828,0.42553191,212.98,212.92,23.776884]
[1733863618430,0.42553191,212.98,212.9,24.153354]